lending/lending_fUSD_20260206
["ID","MTS","AMOUNT","RATE_DAILY","PERIOD"]
[404653203,1770383440385,-200.0,0.00012651,2]
[404653204,1770383440394,-180.48850923,0.00012657,2]
[404653205,1770383440404,-154.47321009,0.00012657,2]
[404653206,1770383440413,-500.0,0.00012657,2]
[404653207,1770383440422,-150.0,0.00012657,2]
[404653208,1770383440432,-500.0,0.00012657,2]
[404653209,1770383440442,-150.0,0.00012657,2]
[404653210,1770383440451,-500.0,0.00012657,2]
[404653211,1770383440460,-500.0,0.00012657,2]
[404653212,1770383440469,-150.0,0.00012657,2]
[404653214,1770383440479,-500.0,0.00012657,2]
[404653216,1770383440488,-150.0,0.00012657,2]
[404653218,1770383440497,-500.0,0.00012657,2]
[404653220,1770383440507,-150.5833019,0.00012657,2]
[404653222,1770383440516,-500.0,0.00012657,2]
[404653224,1770383440526,-500.0,0.00012657,2]
[404653226,1770383440535,-150.0,0.00012667,2]
[404653228,1770383440544,-150.0,0.00012712,2]
[404653230,1770383440553,-500.0,0.00012712,2]
[404653232,1770383440562,-500.0,0.00012712,2]
[404653234,1770383440571,-150.0,0.00012712,2]
[404653236,1770383440581,-500.0,0.00012712,2]
[404653238,1770383440590,-150.0,0.00012712,2]
[404653240,1770383440599,-500.0,0.00012712,2]
[404653242,1770383440608,-500.0,0.00012712,2]
[404653244,1770383440618,-150.0,0.00012712,2]
[404653245,1770383440627,-500.0,0.00012712,2]
[404653247,1770383440636,-506.82577565,0.00012712,2]
[404653248,1770383440645,-204.66244419,0.00012712,2]
[404653249,1770383440655,-150.0,0.00012722,2]
[404653250,1770383440665,-151.0,0.00012731,2]
[404653251,1770383440674,-151.0,0.00012731,2]
[404653252,1770383440684,-151.0,0.00012731,2]
[404653253,1770383440696,-151.0,0.00012731,2]
[404653254,1770383440705,-151.0,0.00012731,2]
[404653255,1770383440715,-151.0,0.00012731,2]
[404653256,1770383440727,-151.0,0.00012731,2]
[404653257,1770383440736,-151.0,0.00012731,2]
[404653258,1770383440746,-151.0,0.00012731,2]
[404653259,1770383440755,-151.0,0.00012731,2]
[404653260,1770383440765,-151.0,0.00012731,2]
[404653261,1770383440779,-151.0,0.00012731,2]
[404653262,1770383440788,-151.0,0.00012731,2]
[404653263,1770383440798,-151.0,0.00012731,2]
[404653264,1770383440807,-151.0,0.00012731,2]
[404653265,1770383440817,-151.0,0.00012731,2]
[404653266,1770383440826,-151.0,0.00012731,2]
[404653267,1770383440835,-151.0,0.00012731,2]
[404653268,1770383440845,-151.0,0.00012731,2]
[404653269,1770383440855,-151.0,0.00012731,2]
[404653270,1770383440864,-151.0,0.00012731,2]
[404653271,1770383440874,-151.0,0.00012731,2]
[404653272,1770383440883,-151.0,0.00012731,2]
[404653273,1770383440892,-151.0,0.00012731,2]
[404653274,1770383440902,-151.0,0.00012731,2]
[404653275,1770383440912,-151.0,0.00012731,2]
[404653276,1770383440921,-151.0,0.00012731,2]
[404653277,1770383440931,-151.0,0.00012731,2]
[404653278,1770383440941,-151.0,0.00012731,2]
[404653279,1770383440951,-151.0,0.00012731,2]
[404653280,1770383440960,-153.37287127,0.00012731,2]
[404653281,1770383440969,-151.0,0.00012731,2]
[404653282,1770383440979,-151.0,0.00012731,2]
[404653283,1770383440988,-151.0,0.00012731,2]
[404653284,1770383440998,-151.0,0.00012731,2]
[404653285,1770383441008,-151.0,0.00012731,2]
[404653286,1770383441020,-151.0,0.00012731,2]
[404653287,1770383441029,-151.0,0.00012731,2]
[404653288,1770383441039,-151.0,0.00012731,2]
[404653289,1770383441049,-203.33737461,0.00012767,2]
[404653290,1770383441059,-235.09596036,0.00012767,2]
[404653291,1770383441069,-500.0,0.00012767,2]
[404653292,1770383441079,-150.0,0.00012767,2]
[404653293,1770383441092,-500.0,0.00012767,2]
[404653294,1770383441102,-500.0,0.00012767,2]
[404653295,1770383441112,-150.61707435,0.00012767,2]
[404653296,1770383441122,-500.0,0.00012767,2]
[404653297,1770383441132,-150.0,0.00012767,2]
[404653298,1770383441142,-500.0,0.00012767,2]
[404653299,1770383441151,-156.30592186,0.00012776,2]
[404653300,1770383441161,-328.58375143,0.00012821,2]
[404653301,1770383441171,-150.0,0.00012821,2]
[404653302,1770383441180,-500.0,0.00012821,2]
[404653303,1770383441190,-605.03210122,0.00012821,2]
[404653304,1770383441199,-500.0,0.00012821,2]
[404653305,1770383441208,-160.40077851,0.00012821,2]
[404653306,1770383441218,-510.31139374,0.00012821,2]
[404653307,1770383441228,-577.94638869,0.00012839,2]
[404653308,1770383441238,-2458.988,0.00012839,2]
[404653309,1770383441247,-193.937,0.00012839,2]
[404653310,1770383441257,-420.0,0.00012854,2]
[404653311,1770383441269,-170.574974,0.00012867,2]
[404653312,1770383441278,-202.23410169,0.00012867,2]
[404653313,1770383441288,-1151.0,0.00012876,2]
[404653314,1770383441298,-228.97777935,0.00012876,2]
[404653315,1770383441307,-500.0,0.00012876,2]
[404653316,1770383441317,-500.0,0.00012876,2]
[404653317,1770383441327,-300.0,0.00012877,2]
[404653318,1770383441336,-500.0,0.00012931,2]
[404653319,1770383441346,-615.22197505,0.00012931,2]
[404653320,1770383441355,-500.0,0.00012939,2]
[404653321,1770383441365,-500.0,0.00012986,2]
[404653322,1770383441375,-155.0,0.00012999,2]
[404653323,1770383441384,-1144771.071,0.00013,2]
[404653324,1770383441393,-1000.0,0.00013,2]
[404653325,1770383441402,-33301.6812,0.00013,2]
[404653326,1770383441411,-253.22863447,0.00013041,2]
[404653327,1770383441420,-241.00287784,0.00013076,2]
[404653328,1770383441430,-300.0,0.00013076,2]
[404653329,1770383441439,-250.0,0.00013076,2]
[404653330,1770383441448,-150.0,0.0001323,2]
[404653331,1770383441458,-1000.0,0.00013374,2]
[404653332,1770383441467,-150.0,0.00013407,2]
[404653333,1770383441476,-3240.0,0.00013425,2]
[404653334,1770383441490,-5784.13600239,0.00013426,2]
[404653335,1770383441500,-4584.8,0.00013488,2]
[404653336,1770383441509,-10513.29264746,0.00013607,2]
[404653337,1770383441522,-500.0,0.00013698,2]
[404653338,1770383441532,-264.20969998,0.00013698,2]
[404653339,1770383441542,-500.0,0.00013698,2]
[404653340,1770383441553,-500.0,0.00013698,2]
[404653341,1770383441564,-500.0,0.00013698,2]
[404653342,1770383441575,-500.0,0.00013698,2]
[404653343,1770383441586,-500.0,0.00013698,2]
[404653344,1770383441597,-500.0,0.00013698,2]
[404653345,1770383441609,-500.0,0.00013698,2]
[404653346,1770383441619,-500.0,0.00013698,2]
[404653347,1770383441629,-500.0,0.00013698,2]
[404653348,1770383441639,-500.0,0.00013698,2]
[404653349,1770383441649,-500.0,0.00013698,2]
[404653350,1770383441659,-500.0,0.00013698,2]
[404653351,1770383441669,-500.0,0.00013698,2]
[404653352,1770383441680,-463.0925762,0.00013698,2]
[404653353,1770383441690,-255.0,0.00013736,2]
[404653354,1770383441701,-500.0,0.00013901,2]
[404653355,1770383441711,-587.0,0.00014115,2]
[404653356,1770383441725,-10513.29264746,0.00014675,2]
[404653357,1770383441735,-9142.65839931,0.00014801,2]
[404653358,1770383441748,-1000.0,0.0001486,2]
[404653359,1770383441759,-433.0,0.00014937,2]
[404653360,1770383441773,-250.0,0.00015,2]
[404653361,1770383441787,-182.73,0.00015376,2]
[404653362,1770383441798,-226.0,0.00015499,2]
[404653363,1770383441810,-250.0,0.00015708,2]
[404653364,1770383441821,-10513.29264746,0.00015743,2]
[404653365,1770383441831,-736.0,0.00016226,2]
[404653366,1770383441843,-1000.0,0.00016346,2]
[404653367,1770383441854,-323.56765981,0.00016438,2]
[404653368,1770383441864,-500.0,0.00016438,2]
[404653369,1770383441875,-500.0,0.00016438,2]
[404653370,1770383441885,-227.37,0.00016438,2]
[404653371,1770383441897,-801.49439566,0.00016438,2]
[404653372,1770383441907,-150.25704323,0.00016473,2]
[404653373,1770383441917,-500.0,0.00016473,2]
[404653374,1770383441927,-500.0,0.00016473,2]
[404653375,1770383441937,-511.12790579,0.00016473,2]
[404653376,1770383441946,-329.29524768,0.00016473,2]
[404653377,1770383441956,-500.0,0.00016473,2]
[404653378,1770383441966,-418.94756511,0.00016473,2]
[404653379,1770383441976,-9999.99,0.00016922,2]
[404653380,1770383441985,-1176.53,0.00016922,2]
[404653381,1770383441995,-7862.88,0.00016922,2]
[404653382,1770383442004,-150.99,0.00016922,2]
[404653383,1770383442014,-299.99,0.00016922,4]
[404653384,1770383442028,-300.0,0.00017,2]
[404653385,1770383442039,-1000.0,0.00017021,2]
[404653386,1770383442048,-1000.0,0.00017021,2]
[404653387,1770383442058,-1000.0,0.00017021,2]
[404653388,1770383442067,-662.73111836,0.00017037,2]
[404653389,1770383442077,-9142.65839931,0.00017063,2]
[404653390,1770383442086,-159.47617403,0.00017808,2]
[404653391,1770383442096,-1000.0,0.00017832,2]
[404653392,1770383442105,-500.0,0.000179,2]
[404653393,1770383442114,-433.53666957,0.00017973,2]
[404653394,1770383442123,-202.23410168,0.00018059,2]
[404653395,1770383442133,-9142.65839931,0.00019326,2]
[404653396,1770383442142,-479.76195257,0.000194,2]
[404653397,1770383442151,-500.0,0.00019726,2]
[404653398,1770383442160,-500.0,0.00019781,2]
[404653399,1770383442170,-626.47040213,0.00019836,2]
[404653400,1770383442179,-479.76195257,0.00019886,2]
[404653401,1770383442189,-479.76195257,0.00020371,2]
[404653402,1770383442198,-195.306668,0.00020554,7]
[404653403,1770383442208,-479.76195257,0.00020856,2]
[404653404,1770383442217,-479.76195257,0.00021341,2]
[404653405,1770383442226,-662.73111836,0.00021534,2]
[404653406,1770383442236,-9142.65839931,0.00021588,2]
[404653407,1770383442245,-479.76195257,0.00021826,2]
[404653408,1770383442254,-150.0,0.00021918,2]
[404653409,1770383442263,-300.0,0.00021999,2]
[404653410,1770383442275,-300.0,0.00021999,2]
[404653411,1770383442284,-27100.63,0.00022,2]
[404653412,1770383442294,-165.85,0.0002225,2]
[404653413,1770383442303,-165.78,0.000223,7]
[404653414,1770383442312,-479.76195257,0.00022311,2]
[404653415,1770383442321,-479.76195257,0.00022796,2]
[404653416,1770383442331,-160.0,0.00023,2]
[404653417,1770383442340,-170.57497397,0.00023251,2]
[404653418,1770383442350,-202.23410168,0.00023252,2]
[404653419,1770383442359,-479.76195257,0.00023281,2]
[404653420,1770383442369,-1145.88881,0.00023304,30]
[404653421,1770383442378,-338.78,0.00023635,2]
[404653422,1770383442388,-479.76195257,0.00023766,2]
[404653423,1770383442398,-9142.65839931,0.0002385,2]
[404653424,1770383442408,-479.76195257,0.00024251,2]
[404653425,1770383442417,-338.78,0.00024344,2]
[404653426,1770383442427,-1000.0,0.00024658,2]
[404653427,1770383442436,-479.76195257,0.00024736,2]
[404653428,1770383442446,-27100.63,0.000248,2]
[404653429,1770383442455,-338.78,0.00025074,2]
[404653430,1770383442465,-300.0,0.00025099,10]
[404653431,1770383442474,-300.0,0.00025099,10]
[404653432,1770383442483,-662.73111836,0.00026032,2]
[404653433,1770383442493,-9142.65839931,0.00026112,2]
[404653434,1770383442503,-182.73,0.0002681,2]
[404653435,1770383442512,-6582.0,0.00026945,2]
[404653436,1770383442523,-1209.357,0.00026945,2]
[404653437,1770383442532,-3483.0,0.00027357,2]
[404653438,1770383442541,-1411.0,0.00027357,2]
[404653439,1770383442551,-1335.0,0.00027357,2]
[404653440,1770383442560,-1272.0,0.00027357,2]
[404653441,1770383442569,-150.0,0.00027369,2]
[404653442,1770383442578,-954.907341,0.00027541,30]
[404653443,1770383442588,-231.99054497,0.00028272,2]
[404653444,1770383442597,-1063.07821388,0.00028281,2]
[404653445,1770383442606,-408.54610593,0.00028281,2]
[404653446,1770383442616,-9142.65839931,0.00028375,2]
[404653447,1770383442625,-202.23410168,0.00028444,2]
[404653450,1770383442635,-500.0,0.0002926,2]
[404653452,1770383442644,-6582.0,0.00029945,2]
[404653455,1770383442662,-1897.446,0.00030357,2]
[404653457,1770383442673,-1335.0,0.00030357,2]
[404653459,1770383442682,-662.73111836,0.00030529,2]
[404653461,1770383442692,-9142.65839931,0.00030637,2]
[404653463,1770383442702,-27100.63,0.000314,2]
[404653465,1770383442711,-9142.65839931,0.00032899,2]
[404653467,1770383442728,-6582.0,0.00032945,2]
[404653469,1770383442746,-300.0,0.00032999,10]
[404653471,1770383442756,-300.0,0.00032999,10]
[404653473,1770383442766,-157.4,0.00033,14]
[404653475,1770383442776,-1292.78,0.00033,2]
[404653477,1770383442786,-288.62,0.00033,14]
[404653478,1770383442795,-168.56945686,0.00033019,14]
[404653479,1770383442805,-500.0,0.00033034,2]
[404653480,1770383442815,-170.57497397,0.00033636,5]
[404653481,1770383442824,-202.23410168,0.00033636,2]
[404653482,1770383442834,-954.907341,0.00033896,60]
[404653483,1770383442843,-35778.0,0.00034553,2]
[404653484,1770383442852,-182.73,0.00034755,2]
[404653485,1770383442862,-662.73111836,0.00035027,2]
[404653486,1770383442871,-6582.0,0.00035945,2]
[404653487,1770383442880,-500.0,0.000366,5]
[404653488,1770383442890,-2000.0,0.000367,2]
[404653489,1770383442900,-27100.63,0.000367,2]
[404653490,1770383442909,-300.0,0.00036829,10]
[404653491,1770383442919,-666.0,0.00036829,30]
[404653492,1770383442928,-1000.0,0.00036997,30]
[404653493,1770383442938,-1000.0,0.00036997,30]
[404653494,1770383442947,-1000.0,0.00036997,30]
[404653495,1770383442957,-1000.0,0.00036997,30]
[404653496,1770383442966,-1000.0,0.00036997,30]
[404653497,1770383442976,-1000.0,0.00036997,30]
[404653498,1770383442986,-1000.0,0.00036997,30]
[404653499,1770383442997,-1000.0,0.00036997,30]
[404653500,1770383443007,-1000.0,0.00036997,30]
[404653501,1770383443017,-500.0,0.00036997,30]
[404653502,1770383443028,-1000.0,0.00036997,90]
[404653503,1770383443037,-1000.0,0.00036997,90]
[404653504,1770383443047,-1000.0,0.00036997,90]
[404653505,1770383443056,-1000.0,0.00036997,90]
[404653506,1770383443066,-1000.0,0.00036997,90]
[404653507,1770383443076,-193.937,0.00037129,47]
[404653508,1770383443086,-2458.988,0.00037129,47]
[404653509,1770383443095,-195.58902898,0.000372,120]
[404653510,1770383443105,-1292.78,0.000377,2]
[404653511,1770383443114,-288.62,0.000377,14]
[404653512,1770383443126,-166.66,0.0003776,2]
[404653513,1770383443138,-166.66,0.00038289,30]
[404653514,1770383443148,-202.23410168,0.00038829,2]
[404653515,1770383443158,-300.0,0.00038899,10]
[404653516,1770383443168,-300.0,0.00038899,10]
[404653517,1770383443178,-6582.0,0.00038945,2]
[404653518,1770383443188,-600.0,0.00038958,120]
[404653519,1770383443198,-300.0,0.00038999,10]
[404653520,1770383443207,-166.66,0.00039006,2]
[404653521,1770383443217,-166.66,0.00039095,30]
[404653522,1770383443227,-500.0,0.00039151,2]
[404653523,1770383443237,-300.0,0.00039197,10]
[404653524,1770383443247,-662.73111836,0.00039524,2]
[404653525,1770383443256,-765.56298528,0.00039676,120]
[404653526,1770383443266,-600.0,0.00039686,120]
[404653527,1770383443277,-27100.63,0.000397,2]
[404653528,1770383443287,-1555.09520892,0.00039705,2]
[404653529,1770383443298,-377.31136206,0.00039705,2]
[404653530,1770383443311,-253.61853036,0.00039708,7]
[404653531,1770383443321,-225.82182579,0.00039708,7]
[404653532,1770383443331,-219.94196114,0.00039708,7]
[404653533,1770383443341,-241.68477112,0.00039708,7]
[404653534,1770383443350,-4073.69111168,0.00039735,14]
[404653535,1770383443359,-5800.0,0.00039784,14]
[404653536,1770383443368,-5800.0,0.00039792,14]
[404653537,1770383443377,-5800.0,0.00039801,14]
[404653538,1770383443387,-5800.0,0.00039809,14]
[404653539,1770383443397,-166.66,0.00039901,30]
[404653540,1770383443409,-1429.9935912,0.00039911,120]
[404653541,1770383443418,-2500.0,0.0004,7]
[404653542,1770383443427,-165.78,0.0004,14]
[404653543,1770383443436,-1292.78,0.0004,30]
[404653544,1770383443446,-288.62,0.0004,14]
[404653545,1770383443455,-166.66,0.00040253,2]
[404653546,1770383443464,-2000.0,0.000404,2]
[404653547,1770383443474,-166.66,0.00040707,30]
[404653548,1770383443483,-3000.0,0.00041,10]
[404653549,1770383443493,-300.0,0.00041068,22]
[404653550,1770383443503,-2000.0,0.000411,2]
[404653551,1770383443513,-510.0,0.00041122,10]
[404653552,1770383443523,-548.0,0.000413,5]
[404653553,1770383443532,-200.86911834,0.0004138,120]
[404653554,1770383443542,-166.66,0.00041499,2]
[404653555,1770383443552,-166.66,0.00041513,30]
[404653556,1770383443564,-1292.78,0.000416,30]
[404653557,1770383443574,-288.62,0.000416,14]
[404653558,1770383443584,-5494.783,0.00041945,2]
[404653559,1770383443595,-358.0,0.00042,120]
[404653560,1770383443608,-200.95307,0.00042,22]
[404653562,1770383443617,-27100.63,0.00042,2]
[404653563,1770383443627,-200.0,0.00042029,2]
[404653564,1770383443636,-166.66,0.00042319,30]
[404653565,1770383443646,-763.925873,0.0004237,60]
[404653566,1770383443656,-300.0,0.00042372,30]
[404653567,1770383443665,-25000.0,0.00042373,15]
[404653568,1770383443674,-300.0,0.00042381,30]
[404653570,1770383443683,-25000.0,0.00042382,15]
[404653571,1770383443693,-300.0,0.00042389,30]
[404653573,1770383443702,-25000.0,0.0004239,15]
[404653575,1770383443711,-500.0,0.00042478,60]
[404653577,1770383443722,-500.0,0.00042478,60]
[404653579,1770383443733,-800.0,0.00042478,60]
[404653581,1770383443743,-1535.0,0.00042497,16]
[404653582,1770383443752,-25000.0,0.0004256,15]
[404653584,1770383443763,-25000.0,0.00042569,15]
[404653587,1770383443772,-4210.80649915,0.00042569,15]
[404653590,1770383443781,-65938.0,0.00042601,30]
[404653593,1770383443791,-3489.0,0.00042658,16]
[404653595,1770383443800,-510.0,0.00042678,10]
[404653597,1770383443810,-165.78,0.000427,14]
[404653598,1770383443824,-166.66,0.00042746,2]
[404653599,1770383443833,-875.60758414,0.00042772,7]
[404653600,1770383443843,-839.0,0.00042799,16]
[404653601,1770383443851,-163.0,0.00042815,16]
[404653602,1770383443861,-800.56114078,0.000429,120]
[404653603,1770383443870,-182.73,0.00042991,14]
[404653604,1770383443880,-160.0,0.00043,30]
[404653605,1770383443890,-500.0,0.00043024,120]
[404653606,1770383443899,-500.0,0.00043024,120]
[404653607,1770383443911,-500.0,0.00043024,120]
[404653608,1770383443925,-500.0,0.00043024,120]
[404653609,1770383443935,-500.0,0.00043024,120]
[404653610,1770383443944,-500.0,0.00043024,120]
[404653611,1770383443953,-500.0,0.00043024,120]
[404653612,1770383443961,-500.0,0.00043024,120]
[404653613,1770383443971,-500.0,0.00043024,120]
[404653614,1770383443980,-500.0,0.00043024,120]
[404653615,1770383443989,-500.0,0.00043024,120]
[404653616,1770383443999,-500.0,0.00043024,120]
[404653617,1770383444008,-500.0,0.00043024,120]
[404653618,1770383444019,-500.0,0.00043024,120]
[404653619,1770383444029,-500.0,0.00043024,120]
[404653620,1770383444039,-500.0,0.00043024,120]
[404653621,1770383444048,-500.0,0.00043024,120]
[404653622,1770383444058,-500.0,0.00043024,120]
[404653623,1770383444068,-500.0,0.00043024,120]
[404653624,1770383444078,-500.0,0.00043024,120]
[404653625,1770383444282,-500.0,0.00043024,120]
[404653626,1770383444292,-500.0,0.00043024,120]
[404653627,1770383444301,-500.0,0.00043024,120]
[404653628,1770383444316,-500.0,0.00043024,120]
[404653629,1770383444326,-500.0,0.00043024,120]
[404653630,1770383444336,-500.0,0.00043024,120]
[404653631,1770383444345,-500.0,0.00043024,120]
[404653632,1770383444355,-500.0,0.00043024,120]
[404653633,1770383444365,-500.0,0.00043024,120]
[404653634,1770383444375,-500.0,0.00043024,120]
[404653635,1770383444384,-500.0,0.00043024,120]
[404653636,1770383444394,-500.0,0.00043024,120]
[404653637,1770383444403,-500.0,0.00043024,120]
[404653638,1770383444413,-500.0,0.00043024,120]
[404653639,1770383444423,-500.0,0.00043024,120]
[404653640,1770383444433,-500.0,0.00043024,120]
[404653641,1770383444442,-500.0,0.00043024,120]
[404653642,1770383444452,-500.0,0.00043024,120]
[404653643,1770383444461,-500.0,0.00043024,120]
[404653644,1770383444470,-500.0,0.00043024,120]
[404653645,1770383444480,-500.0,0.00043024,120]
[404653646,1770383444489,-500.0,0.00043024,120]
[404653647,1770383444499,-500.0,0.00043024,120]
[404653648,1770383444508,-500.0,0.00043024,120]
[404653649,1770383444518,-500.0,0.00043024,120]
[404653650,1770383444530,-500.0,0.00043024,120]
[404653651,1770383444539,-500.0,0.00043024,120]
[404653652,1770383444548,-500.0,0.00043024,120]
[404653653,1770383444557,-631.0,0.00043024,120]
[404653654,1770383444567,-500.0,0.00043024,120]
[404653655,1770383444576,-500.0,0.00043024,120]
[404653656,1770383444586,-500.0,0.00043024,120]
[404653657,1770383444595,-500.0,0.00043024,120]
[404653658,1770383444605,-500.0,0.00043024,120]
[404653659,1770383444614,-500.0,0.00043024,120]
[404653660,1770383444623,-500.0,0.00043024,120]
[404653661,1770383444633,-500.0,0.00043024,120]
[404653662,1770383444642,-500.0,0.00043024,120]
[404653663,1770383444652,-500.0,0.00043024,120]
[404653664,1770383444663,-500.0,0.00043024,120]
[404653665,1770383444673,-500.0,0.00043024,120]
[404653666,1770383444683,-500.0,0.00043024,120]
[404653667,1770383444692,-500.0,0.00043024,120]
[404653668,1770383444702,-500.0,0.00043024,120]
[404653669,1770383444711,-500.0,0.00043024,120]
[404653670,1770383444723,-737.0,0.00043024,120]
[404653671,1770383444736,-500.0,0.00043024,120]
[404653672,1770383444746,-500.0,0.00043024,120]
[404653673,1770383444755,-500.0,0.00043024,120]
[404653674,1770383444767,-500.0,0.00043024,120]
[404653675,1770383444779,-500.0,0.00043024,120]
[404653676,1770383444789,-500.0,0.00043024,120]
[404653677,1770383444798,-500.0,0.00043024,120]
[404653678,1770383444809,-500.0,0.00043024,120]
[404653679,1770383444818,-500.0,0.00043024,120]
[404653680,1770383444828,-500.0,0.00043024,120]
[404653681,1770383444838,-500.0,0.00043024,120]
[404653682,1770383444847,-500.0,0.00043024,120]
[404653683,1770383444857,-500.0,0.00043024,120]
[404653684,1770383444866,-500.0,0.00043024,120]
[404653685,1770383444876,-500.0,0.00043024,120]
[404653686,1770383444885,-500.0,0.00043024,120]
[404653687,1770383444895,-500.0,0.00043024,120]
[404653688,1770383444904,-500.0,0.00043024,120]
[404653689,1770383444914,-500.0,0.00043024,120]
[404653690,1770383444924,-500.0,0.00043024,120]
[404653691,1770383444934,-500.0,0.00043024,120]
[404653692,1770383444944,-500.0,0.00043024,120]
[404653693,1770383444953,-500.0,0.00043024,120]
[404653694,1770383444963,-500.0,0.00043024,120]
[404653695,1770383444972,-500.0,0.00043024,120]
[404653696,1770383444981,-500.0,0.00043024,120]
[404653697,1770383444991,-500.0,0.00043024,120]
[404653698,1770383445000,-500.0,0.00043024,120]
[404653699,1770383445010,-500.0,0.00043024,120]
[404653700,1770383445022,-500.0,0.00043024,120]
[404653701,1770383445032,-500.0,0.00043024,120]
[404653702,1770383445041,-500.0,0.00043024,120]
[404653703,1770383445051,-500.0,0.00043024,120]
[404653704,1770383445062,-500.0,0.00043024,120]
[404653705,1770383445071,-500.0,0.00043024,120]
[404653706,1770383445081,-500.0,0.00043024,120]
[404653707,1770383445091,-500.0,0.00043024,120]
[404653708,1770383445101,-500.0,0.00043024,120]
[404653709,1770383445111,-500.0,0.00043024,120]
[404653710,1770383445121,-500.0,0.00043024,120]
[404653711,1770383445131,-500.0,0.00043024,120]
[404653712,1770383445141,-500.0,0.00043024,120]
[404653713,1770383445150,-500.0,0.00043024,120]
[404653714,1770383445159,-500.0,0.00043024,120]
[404653715,1770383445169,-500.0,0.00043024,120]
[404653716,1770383445178,-500.0,0.00043024,120]
[404653717,1770383445188,-500.0,0.00043024,120]
[404653718,1770383445198,-500.0,0.00043024,120]
[404653719,1770383445207,-500.0,0.00043024,120]
[404653720,1770383445217,-500.0,0.00043024,120]
[404653721,1770383445226,-500.0,0.00043024,120]
[404653722,1770383445240,-500.0,0.00043024,120]
[404653723,1770383445249,-500.0,0.00043024,120]
[404653724,1770383445259,-500.0,0.00043024,120]
[404653725,1770383445268,-500.0,0.00043024,120]
[404653726,1770383445280,-500.0,0.00043024,120]
[404653727,1770383445289,-500.0,0.00043024,120]
[404653728,1770383445299,-500.0,0.00043024,120]
[404653729,1770383445309,-500.0,0.00043024,120]
[404653730,1770383445318,-500.0,0.00043024,120]
[404653731,1770383445327,-500.0,0.00043024,120]
[404653732,1770383445337,-500.0,0.00043024,120]
[404653733,1770383445347,-500.0,0.00043024,120]
[404653734,1770383445357,-500.0,0.00043024,120]
[404653735,1770383445366,-500.0,0.00043024,120]
[404653736,1770383445376,-500.0,0.00043024,120]
[404653737,1770383445385,-500.0,0.00043024,120]
[404653738,1770383445395,-500.0,0.00043024,120]
[404653739,1770383445405,-500.0,0.00043024,120]
[404653740,1770383445415,-500.0,0.00043024,120]
[404653741,1770383445425,-500.0,0.00043024,120]
[404653742,1770383445434,-500.0,0.00043024,120]
[404653743,1770383445443,-500.0,0.00043024,120]
[404653744,1770383445453,-500.0,0.00043024,120]
[404653745,1770383445463,-500.0,0.00043024,120]
[404653746,1770383445472,-500.0,0.00043024,120]
[404653747,1770383445482,-500.0,0.00043024,120]
[404653748,1770383445491,-500.0,0.00043024,120]
[404653749,1770383445500,-500.0,0.00043024,120]
[404653750,1770383445509,-500.0,0.00043024,120]
[404653751,1770383445518,-500.0,0.00043024,120]